Workbook

Sheet Liste de courses
M1: =calculs!M9 -> PRODUITS LAITIERS TOTAL
B2: Liste de courses
C3: OK | D3: ARTICLE | E3: MAGASIN | F3: CATÉGORIE | G3: QTÉ | H3: UNITÉ | I3: PRIX UNITAIRE | J3: TOTAL | K3: COMMENTAIRE | M3: =calculs!L9 -> 37
C4: 1 | D4: Oranges | E4: Épicerie | F4: Produit | G4: 2 | H4: kilos | I4: 2.99 € | J4: =IFERROR(Liste[QTÉ]*Liste[PRIX UNITAIRE],"") -> 5.98 € | M4: =calculs!M8 -> PRODUIT TOTAL
D5: Pommes | E5: Verger | F5: Produit | G5: 3 | H5: kilos | I5: 1.99 € | J5: =IFERROR(Liste[QTÉ]*Liste[PRIX UNITAIRE],"") -> 5.97 € | K5: Bon de réduction | M5: =calculs!L8 -> 45
D6: Bananes | E6: Épicerie | F6: Produit | G6: 1 | H6: lot | I6: 3.99 € | J6: =IFERROR(Liste[QTÉ]*Liste[PRIX UNITAIRE],"") -> 3.99 €
D7: Laitue | E7: Marché | F7: Produit | G7: 2 | H7: tête | I7: 2.29 € | J7: =IFERROR(Liste[QTÉ]*Liste[PRIX UNITAIRE],"") -> 4.58 € | M7: =calculs!M7 -> VIANDE TOTAL
D8: Tomates | E8: Marché | F8: Produit | G8: 4 | H8: kilos | I8: 3.49 € | J8: =IFERROR(Liste[QTÉ]*Liste[PRIX UNITAIRE],"") -> 13.96 € | M8: =calculs!L7 -> 80
D9: Courge | E9: Marché | F9: Produit | G9: 2 | H9: unité | I9: 1.50 € | J9: =IFERROR(Liste[QTÉ]*Liste[PRIX UNITAIRE],"") -> 3.00 €
D10: Céleri | E10: Épicerie | F10: Produit | G10: 2 | H10: lot | I10: 1.99 € | J10: =IFERROR(Liste[QTÉ]*Liste[PRIX UNITAIRE],"") -> 3.98 € | M10: =calculs!M6 -> FRUITS DE MER TOTAL
D11: Concombre | E11: Marché | F11: Produit | G11: 1 | H11: kilos | I11: 2.29 € | J11: =IFERROR(Liste[QTÉ]*Liste[PRIX UNITAIRE],"") -> 2.29 € | M11: =calculs!L6 -> 109
D12: Champignons | E12: Épicerie | F12: Produit | G12: 0.5 | H12: kilos | I12: 2.25 € | J12: =IFERROR(Liste[QTÉ]*Liste[PRIX UNITAIRE],"") -> 1.13 € | K12: Grands champignons de Paris
D13: Lait | E13: Livraison à domicile | F13: Produits laitiers | G13: 2 | H13: litres | I13: 3.99 € | J13: =IFERROR(Liste[QTÉ]*Liste[PRIX UNITAIRE],"") -> 7.98 € | M13: =calculs!M3 -> TOTAL AUTRES
D14: Fromage | E14: Livraison à domicile | F14: Produits laitiers | G14: 1 | H14: kilos | I14: 9.99 € | J14: =IFERROR(Liste[QTÉ]*Liste[PRIX UNITAIRE],"") -> 9.99 € | K14: Assortiment de fromages à la coupe | M14: =calculs!L3 -> 0
D15: Œufs | E15: Livraison à domicile | F15: Produits laitiers | G15: 2 | H15: douzaine | I15: 3.50 € | J15: =IFERROR(Liste[QTÉ]*Liste[PRIX UNITAIRE],"") -> 7.00 €
D16: Fromage blanc | E16: Livraison à domicile | F16: Produits laitiers | G16: 1 | H16: 16 grammes | I16: 3.89 € | J16: =IFERROR(Liste[QTÉ]*Liste[PRIX UNITAIRE],"") -> 3.89 € | M16: =calculs!M4 -> TOTAL COURSES
D17: Crème | E17: Livraison à domicile | F17: Produits laitiers | G17: 1 | H17: 8 grammes | I17: 2.99 € | J17: =IFERROR(Liste[QTÉ]*Liste[PRIX UNITAIRE],"") -> 2.99 € | M17: =TotalCourses -> 271
D18: Yaourt | E18: Épicerie | F18: Produits laitiers | G18: 1 | H18: 16 grammes | I18: 4.99 € | J18: =IFERROR(Liste[QTÉ]*Liste[PRIX UNITAIRE],"") -> 4.99 € | K18: Grec avec du miel
D19: Bœuf | E19: Marché | F19: Viande | G19: 10 | H19: kilos | I19: 7.99 € | J19: =IFERROR(Liste[QTÉ]*Liste[PRIX UNITAIRE],"") -> 79.90 € | K19: Filet mignon et bacon
D20: Saumon sauvage | E20: Marché aux poissons | F20: Fruits de mer | G20: 6 | H20: kilos | I20: 8.99 € | J20: =IFERROR(Liste[QTÉ]*Liste[PRIX UNITAIRE],"") -> 53.94 €
D21: Pinces de crabe | E21: Marché aux poissons | F21: Fruits de mer | G21: 5 | H21: kilos | I21: 10.99 € | J21: =IFERROR(Liste[QTÉ]*Liste[PRIX UNITAIRE],"") -> 54.95 €

Sheet calculs (hidden)
A1: *** La feuille doit rester masquée ***
K3: =SUM(Liste[TOTAL])-SUM(K6:K9) -> 0.00 € | L3: =ROUND(K3,0) -> 0 € | M3: TOTAL AUTRES
L4: =ROUNDUP(SUM(Liste[TOTAL]),0) -> 271 € | M4: TOTAL COURSES
E6: =IFERROR(INDEX(Liste[CATÉGORIE],MATCH(,COUNTIF($E$5:E5,Liste[CATÉGORIE]),)),"") -> Produit | F6: =SUMIFS(Liste[TOTAL],Liste[CATÉGORIE],E6) -> 44.875 | G6: =F6+ROW()/1000000 -> 44.875006 | H6: =LARGE($G$6:$G$21,1) -> 108.890009 | I6: =MATCH(H6,$G$6:$G$21,0) -> 4 | J6: =INDEX($E$6:$E$21,$I6) -> Fruits de mer | K6: =INDEX($F$6:$F$21,$I6) -> 108.89 € | L6: =ROUND(K6,0) -> 109 € | M6: =UPPER(J6) & " TOTAL" -> FRUITS DE MER TOTAL
E7: =IFERROR(INDEX(Liste[CATÉGORIE],MATCH(,COUNTIF($E$5:E6,Liste[CATÉGORIE]),)),"") -> Produits laitiers | F7: =SUMIFS(Liste[TOTAL],Liste[CATÉGORIE],E7) -> 36.84 | G7: =F7+ROW()/1000000 -> 36.840007 | H7: =LARGE($G$6:$G$21,2) -> 79.900008 | I7: =MATCH(H7,$G$6:$G$21,0) -> 3 | J7: =INDEX($E$6:$E$21,$I7) -> Viande | K7: =INDEX($F$6:$F$21,$I7) -> 79.90 € | L7: =ROUND(K7,0) -> 80 € | M7: =UPPER(J7) & " TOTAL" -> VIANDE TOTAL
E8: =IFERROR(INDEX(Liste[CATÉGORIE],MATCH(,COUNTIF($E$5:E7,Liste[CATÉGORIE]),)),"") -> Viande | F8: =SUMIFS(Liste[TOTAL],Liste[CATÉGORIE],E8) -> 79.9 | G8: 79.900008 | H8: =LARGE($G$6:$G$21,3) -> 44.875006 | I8: =MATCH(H8,$G$6:$G$21,0) -> 1 | J8: =INDEX($E$6:$E$21,$I8) -> Produit | K8: =INDEX($F$6:$F$21,$I8) -> 44.88 € | L8: =ROUND(K8,0) -> 45 € | M8: =UPPER(J8) & " TOTAL" -> PRODUIT TOTAL
E9: =IFERROR(INDEX(Liste[CATÉGORIE],MATCH(,COUNTIF($E$5:E8,Liste[CATÉGORIE]),)),"") -> Fruits de mer | F9: =SUMIFS(Liste[TOTAL],Liste[CATÉGORIE],E9) -> 108.89 | G9: 108.890009 | H9: =LARGE($G$6:$G$21,4) -> 36.840007 | I9: =MATCH(H9,$G$6:$G$21,0) -> 2 | J9: =INDEX($E$6:$E$21,$I9) -> Produits laitiers | K9: =INDEX($F$6:$F$21,$I9) -> 36.84 € | L9: =ROUND(K9,0) -> 37 € | M9: =UPPER(J9) & " TOTAL" -> PRODUITS LAITIERS TOTAL
E10: =IFERROR(INDEX(Liste[CATÉGORIE],MATCH(,COUNTIF($E$5:E9,Liste[CATÉGORIE]),)),"") ->  | F10: =SUMIFS(Liste[TOTAL],Liste[CATÉGORIE],E10) -> 0 | G10: 1e-05
E11: =IFERROR(INDEX(Liste[CATÉGORIE],MATCH(,COUNTIF($E$5:E10,Liste[CATÉGORIE]),)),"") ->  | F11: =SUMIFS(Liste[TOTAL],Liste[CATÉGORIE],E11) -> 0 | G11: 1.1e-05
E12: =IFERROR(INDEX(Liste[CATÉGORIE],MATCH(,COUNTIF($E$5:E11,Liste[CATÉGORIE]),)),"") ->  | F12: =SUMIFS(Liste[TOTAL],Liste[CATÉGORIE],E12) -> 0 | G12: 1.2e-05
E13: =IFERROR(INDEX(Liste[CATÉGORIE],MATCH(,COUNTIF($E$5:E12,Liste[CATÉGORIE]),)),"") ->  | F13: =SUMIFS(Liste[TOTAL],Liste[CATÉGORIE],E13) -> 0 | G13: 1.3e-05
E14: =IFERROR(INDEX(Liste[CATÉGORIE],MATCH(,COUNTIF($E$5:E13,Liste[CATÉGORIE]),)),"") ->  | F14: =SUMIFS(Liste[TOTAL],Liste[CATÉGORIE],E14) -> 0 | G14: 1.4e-05
E15: =IFERROR(INDEX(Liste[CATÉGORIE],MATCH(,COUNTIF($E$5:E14,Liste[CATÉGORIE]),)),"") ->  | F15: =SUMIFS(Liste[TOTAL],Liste[CATÉGORIE],E15) -> 0 | G15: 1.5e-05
E16: =IFERROR(INDEX(Liste[CATÉGORIE],MATCH(,COUNTIF($E$5:E15,Liste[CATÉGORIE]),)),"") ->  | F16: =SUMIFS(Liste[TOTAL],Liste[CATÉGORIE],E16) -> 0 | G16: 1.6e-05
E17: =IFERROR(INDEX(Liste[CATÉGORIE],MATCH(,COUNTIF($E$5:E16,Liste[CATÉGORIE]),)),"") ->  | F17: =SUMIFS(Liste[TOTAL],Liste[CATÉGORIE],E17) -> 0 | G17: 1.7e-05
E18: =IFERROR(INDEX(Liste[CATÉGORIE],MATCH(,COUNTIF($E$5:E17,Liste[CATÉGORIE]),)),"") ->  | F18: =SUMIFS(Liste[TOTAL],Liste[CATÉGORIE],E18) -> 0 | G18: 1.8e-05
E19: =IFERROR(INDEX(Liste[CATÉGORIE],MATCH(,COUNTIF($E$5:E18,Liste[CATÉGORIE]),)),"") ->  | F19: =SUMIFS(Liste[TOTAL],Liste[CATÉGORIE],E19) -> 0 | G19: 1.9e-05
E20: =IFERROR(INDEX(Liste[CATÉGORIE],MATCH(,COUNTIF($E$5:E19,Liste[CATÉGORIE]),)),"") ->  | F20: =SUMIFS(Liste[TOTAL],Liste[CATÉGORIE],E20) -> 0 | G20: 2e-05
E21: =IFERROR(INDEX(Liste[CATÉGORIE],MATCH(,COUNTIF($E$5:E20,Liste[CATÉGORIE]),)),"") ->  | F21: =SUMIFS(Liste[TOTAL],Liste[CATÉGORIE],E21) -> 0 | G21: 2.1e-05
